[Event "Early Titled Tuesday Blitz | February 8 2022"]
[White "Manelyuk, Daniil"]
[Black "Hamley, Ryan"]
[WhiteFideId "44173920"]
[BlackFideId "30959497"]
[WhiteElo "2222"]
[BlackElo "2480"]
[Result "1/2-1/2"]
[Round "06"]
[TimeControl "180+1"]
[Date "2022.02.08"]
[WhiteClock "0:00:22"]
[BlackClock "0:00:21"]

1. e4 {[%clk 0:02:47]}  c6 {[%clk 0:02:57]} 2. d4 {[%clk 0:02:46]}  d5 {[%clk 0:02:58]} 3. Nc3 {[%clk 0:02:47]}  dxe4 {[%clk 0:02:57]} 4. Nxe4 {[%clk 0:02:47]}  Nf6 {[%clk 0:02:58]} 5. Nxf6+ {[%clk 0:02:46]}  exf6 {[%clk 0:02:59]} 6. c3 {[%clk 0:02:43]}  Bd6 {[%clk 0:02:59]} 7. Bd3 {[%clk 0:02:42]}  O-O {[%clk 0:02:59]} 8. Qc2 {[%clk 0:02:42]}  Re8+ {[%clk 0:02:59]} 9. Ne2 {[%clk 0:02:42]}  h5 {[%clk 0:03:00]} 10. O-O {[%clk 0:02:40]}  Nd7 {[%clk 0:02:59]} 11. Be3 {[%clk 0:02:39]}  Nf8 {[%clk 0:02:59]} 12. Rae1 {[%clk 0:02:38]}  Be6 {[%clk 0:02:54]} 13. Nf4 {[%clk 0:02:36]}  Bxf4 {[%clk 0:02:51]} 14. Bxf4 {[%clk 0:02:37]}  b5 {[%clk 0:02:49]} 15. b3 {[%clk 0:02:34]}  a5 {[%clk 0:02:48]} 16. Be2 {[%clk 0:02:27]}  g6 {[%clk 0:02:45]} 17. Bf3 {[%clk 0:02:20]}  Qd7 {[%clk 0:02:45]} 18. Bh6 {[%clk 0:02:17]}  a4 {[%clk 0:02:40]} 19. Rd1 {[%clk 0:01:59]}  Bf5 {[%clk 0:02:29]} 20. Qd2 {[%clk 0:01:51]}  axb3 {[%clk 0:02:20]} 21. axb3 {[%clk 0:01:52]}  Ne6 {[%clk 0:02:20]} 22. d5 {[%clk 0:01:45]}  cxd5 {[%clk 0:02:19]} 23. Bxd5 {[%clk 0:01:46]}  Rad8 {[%clk 0:02:17]} 24. c4 {[%clk 0:01:43]}  bxc4 {[%clk 0:02:16]} 25. bxc4 {[%clk 0:01:44]}  Nc7 {[%clk 0:02:13]} 26. Qc3 {[%clk 0:01:36]}  Nxd5 {[%clk 0:02:11]} 27. Rxd5 {[%clk 0:01:37]}  Qc6 {[%clk 0:02:11]} 28. Rd4 {[%clk 0:01:27]}  Kh7 {[%clk 0:02:06]} 29. Be3 {[%clk 0:01:26]}  Rxd4 {[%clk 0:01:59]} 30. Bxd4 {[%clk 0:01:27]}  Re6 {[%clk 0:01:59]} 31. h3 {[%clk 0:01:24]}  Re2 {[%clk 0:01:45]} 32. Bxf6 {[%clk 0:01:18]}  Rc2 {[%clk 0:01:44]} 33. Qa1 {[%clk 0:01:15]}  Rxc4 {[%clk 0:01:33]} 34. Bh8 {[%clk 0:01:13]}  f6 {[%clk 0:01:15]} 35. Bxf6 {[%clk 0:01:11]}  Qd7 {[%clk 0:01:07]} 36. Re1 {[%clk 0:01:07]}  Re4 {[%clk 0:01:05]} 37. Rd1 {[%clk 0:01:06]}  Qf7 {[%clk 0:01:01]} 38. Rd8 {[%clk 0:00:58]}  g5 {[%clk 0:00:57]} 39. Bxg5 {[%clk 0:00:48]}  Re8 {[%clk 0:00:41]} 40. Rxe8 {[%clk 0:00:37]}  Qxe8 {[%clk 0:00:41]} 41. Qf6 {[%clk 0:00:37]}  Qg6 {[%clk 0:00:40]} 42. Qe7+ {[%clk 0:00:36]}  Qg7 {[%clk 0:00:38]} 43. Qe3 {[%clk 0:00:36]}  Qd7 {[%clk 0:00:35]} 44. Kh2 {[%clk 0:00:34]}  Kg6 {[%clk 0:00:34]} 45. Bf4 {[%clk 0:00:33]}  Qe6 {[%clk 0:00:34]} 46. Qg3+ {[%clk 0:00:33]}  Kh7 {[%clk 0:00:34]} 47. Be5 {[%clk 0:00:30]}  Qg6 {[%clk 0:00:33]} 48. Qf4 {[%clk 0:00:30]}  Kg8 {[%clk 0:00:31]} 49. f3 {[%clk 0:00:28]}  Be6 {[%clk 0:00:30]} 50. Bf6 {[%clk 0:00:21]}  Kh7 {[%clk 0:00:26]} 51. Bh4 {[%clk 0:00:20]}  Kg8 {[%clk 0:00:26]} 52. Qg5 {[%clk 0:00:19]}  Qxg5 {[%clk 0:00:25]} 53. Bxg5 {[%clk 0:00:20]}  Kh7 {[%clk 0:00:25]} 54. g4 {[%clk 0:00:20]}  Kg6 {[%clk 0:00:26]} 55. Bh4 {[%clk 0:00:20]}  Bd7 {[%clk 0:00:21]} 56. Kg3 {[%clk 0:00:20]}  Be6 {[%clk 0:00:21]} 57. Bd8 {[%clk 0:00:20]}  Bd7 {[%clk 0:00:21]} 58. Kh4 {[%clk 0:00:19]}  hxg4 {[%clk 0:00:21]} 59. fxg4 {[%clk 0:00:20]}  Be6 {[%clk 0:00:21]} 60. Kg3 {[%clk 0:00:20]}  Bd7 {[%clk 0:00:20]} 61. h4 {[%clk 0:00:21]}  Be6 {[%clk 0:00:21]} 62. h5+ {[%clk 0:00:20]}  Kh7 {[%clk 0:00:18]} 63. g5 {[%clk 0:00:20]}  Bf7 {[%clk 0:00:18]} 64. Kh4 {[%clk 0:00:20]}  Be8 {[%clk 0:00:18]} 65. Kg4 {[%clk 0:00:20]}  Bf7 {[%clk 0:00:18]} 66. Be7 {[%clk 0:00:20]}  Be8 {[%clk 0:00:18]} 67. Bf6 {[%clk 0:00:20]}  Bf7 {[%clk 0:00:18]} 68. Bb2 {[%clk 0:00:19]}  Be8 {[%clk 0:00:19]} 69. Kh4 {[%clk 0:00:17]}  Bf7 {[%clk 0:00:18]} 70. Kg4 {[%clk 0:00:16]}  Be8 {[%clk 0:00:19]} 71. Kf5 {[%clk 0:00:16]}  Bxh5 {[%clk 0:00:19]} 72. Kf6 {[%clk 0:00:17]}  Bg6 {[%clk 0:00:19]} 73. Bc3 {[%clk 0:00:17]}  Bb1 {[%clk 0:00:19]} 74. Bd4 {[%clk 0:00:18]}  Bc2 {[%clk 0:00:20]} 75. Be5 {[%clk 0:00:19]}  Bb1 {[%clk 0:00:20]} 76. Bd4 {[%clk 0:00:20]}  Bc2 {[%clk 0:00:21]} 77. Be5 {[%clk 0:00:21]}  Bb1 {[%clk 0:00:21]} 78. Bd4 {[%clk 0:00:22]} 1/2-1/2


[Site "https://www.chess.com"]

[Event "Early Titled Tuesday Blitz | February 8 2022"]
[White "Manukian, Artak"]
[Black "Aloma Vidal, Robert"]
[WhiteFideId "13301373"]
[BlackFideId "2260409"]
[WhiteElo "2420"]
[BlackElo "2435"]
[Result "0-1"]
[Round "06"]
[TimeControl "180+1"]
[Date "2022.02.08"]
[WhiteClock "0:00:42"]
[BlackClock "0:01:12"]

1. e4 {[%clk 0:03:00]}  e5 {[%clk 0:03:00]} 2. Nf3 {[%clk 0:02:59]}  Nf6 {[%clk 0:03:01]} 3. d4 {[%clk 0:03:00]}  Nxe4 {[%clk 0:02:59]} 4. Nxe5 {[%clk 0:02:59]}  d6 {[%clk 0:02:57]} 5. Nc4 {[%clk 0:02:58]}  d5 {[%clk 0:02:56]} 6. Ne5 {[%clk 0:02:50]}  Bd6 {[%clk 0:02:57]} 7. Bd3 {[%clk 0:02:48]}  O-O {[%clk 0:02:57]} 8. O-O {[%clk 0:02:42]}  c5 {[%clk 0:02:57]} 9. c3 {[%clk 0:02:42]}  Nc6 {[%clk 0:02:56]} 10. Bxe4 {[%clk 0:02:36]}  dxe4 {[%clk 0:02:54]} 11. Nxc6 {[%clk 0:02:36]}  bxc6 {[%clk 0:02:55]} 12. dxc5 {[%clk 0:02:36]}  Bxc5 {[%clk 0:02:55]} 13. Qxd8 {[%clk 0:02:36]}  Rxd8 {[%clk 0:02:56]} 14. Re1 {[%clk 0:02:17]}  f5 {[%clk 0:02:54]} 15. Be3 {[%clk 0:02:16]}  Bxe3 {[%clk 0:02:50]} 16. fxe3 {[%clk 0:02:17]}  Rb8 {[%clk 0:02:40]} 17. b3 {[%clk 0:02:12]}  Rd3 {[%clk 0:02:34]} 18. Kf2 {[%clk 0:02:08]}  c5 {[%clk 0:02:32]} 19. Rc1 {[%clk 0:02:06]}  a5 {[%clk 0:02:30]} 20. Na3 {[%clk 0:02:04]}  Rd2+ {[%clk 0:02:25]} 21. Kg3 {[%clk 0:02:01]}  Be6 {[%clk 0:02:25]} 22. Rc2 {[%clk 0:01:54]}  Rbd8 {[%clk 0:02:19]} 23. Rac1 {[%clk 0:01:53]}  g5 {[%clk 0:02:15]} 24. Rxd2 {[%clk 0:01:51]}  Rxd2 {[%clk 0:02:13]} 25. Rc2 {[%clk 0:01:52]}  Rd1 {[%clk 0:02:09]} 26. h4 {[%clk 0:01:35]}  h6 {[%clk 0:02:09]} 27. hxg5 {[%clk 0:01:34]}  hxg5 {[%clk 0:02:09]} 28. Nb5 {[%clk 0:01:29]}  Kf7 {[%clk 0:01:45]} 29. c4 {[%clk 0:01:16]}  Kf6 {[%clk 0:01:41]} 30. Nc3 {[%clk 0:01:14]}  Rd3 {[%clk 0:01:38]} 31. Kf2 {[%clk 0:01:13]}  Ke5 {[%clk 0:01:38]} 32. g3 {[%clk 0:01:13]}  f4 {[%clk 0:01:36]} 33. gxf4+ {[%clk 0:01:10]}  gxf4 {[%clk 0:01:36]} 34. exf4+ {[%clk 0:01:10]}  Kxf4 {[%clk 0:01:37]} 35. Ke2 {[%clk 0:01:01]}  Bg4+ {[%clk 0:01:36]} 36. Ke1 {[%clk 0:01:01]}  e3 {[%clk 0:01:25]} 37. Ne2+ {[%clk 0:00:55]}  Ke5 {[%clk 0:01:19]} 38. Rb2 {[%clk 0:00:42]}  Ke4 {[%clk 0:01:13]} 39. Nc3+ {[%clk 0:00:42]}  Rxc3 {[%clk 0:01:12]} 0-1


[Site "https://www.chess.com"]

[Event "Early Titled Tuesday Blitz | February 8 2022"]
[White "Martinovici, Ilia"]
[Black "Domingo Nunez, Alejandro"]
[WhiteFideId "13907034"]
[BlackFideId "22245561"]
[WhiteElo "2303"]
[BlackElo "2215"]
[Result "1-0"]
[Round "06"]
[TimeControl "180+1"]
[Date "2022.02.08"]
[WhiteClock "0:00:09"]
[BlackClock "0:00:12"]

1. d4 {[%clk 0:03:00]}  Nf6 {[%clk 0:02:57]} 2. c4 {[%clk 0:02:59]}  g6 {[%clk 0:02:57]} 3. Nc3 {[%clk 0:02:59]}  d6 {[%clk 0:02:58]} 4. e4 {[%clk 0:02:57]}  Bg7 {[%clk 0:02:58]} 5. f3 {[%clk 0:02:58]}  Nbd7 {[%clk 0:02:57]} 6. Nge2 {[%clk 0:02:58]}  c6 {[%clk 0:02:58]} 7. Bg5 {[%clk 0:02:57]}  a6 {[%clk 0:02:58]} 8. a4 {[%clk 0:02:56]}  a5 {[%clk 0:02:57]} 9. Qd2 {[%clk 0:02:57]}  h6 {[%clk 0:02:56]} 10. Be3 {[%clk 0:02:56]}  Nb8 {[%clk 0:02:56]} 11. Rd1 {[%clk 0:02:48]}  Na6 {[%clk 0:02:55]} 12. g4 {[%clk 0:02:45]}  Nb4 {[%clk 0:02:55]} 13. Ng3 {[%clk 0:02:44]}  h5 {[%clk 0:02:51]} 14. g5 {[%clk 0:02:44]}  Nd7 {[%clk 0:02:51]} 15. h4 {[%clk 0:02:44]}  e5 {[%clk 0:02:46]} 16. d5 {[%clk 0:02:37]}  c5 {[%clk 0:02:32]} 17. Nb5 {[%clk 0:02:37]}  Nb6 {[%clk 0:02:31]} 18. b3 {[%clk 0:02:20]}  O-O {[%clk 0:02:30]} 19. f4 {[%clk 0:02:19]}  exf4 {[%clk 0:01:59]} 20. Bxf4 {[%clk 0:02:20]}  Bg4 {[%clk 0:01:45]} 21. Be2 {[%clk 0:02:19]}  Bxe2 {[%clk 0:01:43]} 22. Qxe2 {[%clk 0:02:20]}  Nc8 {[%clk 0:01:43]} 23. O-O {[%clk 0:02:16]}  Qd7 {[%clk 0:01:37]} 24. Kg2 {[%clk 0:02:08]}  Ra6 {[%clk 0:01:34]} 25. Rf2 {[%clk 0:01:28]}  Na7 {[%clk 0:01:31]} 26. Rdf1 {[%clk 0:00:58]}  Nxb5 {[%clk 0:01:31]} 27. cxb5 {[%clk 0:00:53]}  Raa8 {[%clk 0:01:31]} 28. Qc4 {[%clk 0:00:44]}  Rae8 {[%clk 0:01:28]} 29. b6 {[%clk 0:00:43]}  Bd4 {[%clk 0:01:28]} 30. Rf3 {[%clk 0:00:42]}  Rd8 {[%clk 0:01:07]} 31. Bd2 {[%clk 0:00:26]}  Be5 {[%clk 0:01:01]} 32. Bc3 {[%clk 0:00:27]}  Rde8 {[%clk 0:00:53]} 33. Bxe5 {[%clk 0:00:24]}  Rxe5 {[%clk 0:00:54]} 34. Rf6 {[%clk 0:00:23]}  Qe7 {[%clk 0:00:43]} 35. R1f3 {[%clk 0:00:20]}  Na2 {[%clk 0:00:34]} 36. Qc2 {[%clk 0:00:17]}  Nb4 {[%clk 0:00:34]} 37. Qf2 {[%clk 0:00:17]}  Rxe4 {[%clk 0:00:28]} 38. Nxe4 {[%clk 0:00:17]}  Qxe4 {[%clk 0:00:29]} 39. Kh2 {[%clk 0:00:16]}  Qxd5 {[%clk 0:00:24]} 40. Rxg6+ {[%clk 0:00:15]}  Kh7 {[%clk 0:00:18]} 41. Rh6+ {[%clk 0:00:16]}  Kg8 {[%clk 0:00:19]} 42. Qb2 {[%clk 0:00:14]}  Qd4 {[%clk 0:00:14]} 43. Qxd4 {[%clk 0:00:12]}  cxd4 {[%clk 0:00:15]} 44. Rxd6 {[%clk 0:00:12]}  d3 {[%clk 0:00:15]} 45. g6 {[%clk 0:00:12]}  fxg6 {[%clk 0:00:12]} 46. Rxg6+ {[%clk 0:00:12]}  Kh7 {[%clk 0:00:12]} 47. Rxf8 {[%clk 0:00:11]}  Kxg6 {[%clk 0:00:13]} 48. Rb8 {[%clk 0:00:10]}  Kf5 {[%clk 0:00:11]} 49. Rxb7 {[%clk 0:00:10]}  Ke4 {[%clk 0:00:11]} 50. Rd7 {[%clk 0:00:10]}  Nd5 {[%clk 0:00:10]} 51. b7 {[%clk 0:00:10]}  d2 {[%clk 0:00:11]} 52. Rxd5 {[%clk 0:00:10]}  d1=Q {[%clk 0:00:12]} 53. Rxd1 {[%clk 0:00:09]} 1-0


[Site "https://www.chess.com"]

[Event "Early Titled Tuesday Blitz | February 8 2022"]
[White "Mekhitarian, Krikor Sevag"]
[Black "Nepomniachtchi, Ian"]
[WhiteFideId "2107660"]
[BlackFideId "4168119"]
[WhiteElo "2598"]
[BlackElo "2740"]
[Result "1-0"]
[Round "06"]
[TimeControl "180+1"]
[Date "2022.02.08"]
[WhiteClock "0:00:14"]
[BlackClock "0:00:16"]

1. e4 {[%clk 0:02:59]}  e6 {[%clk 0:02:44]} 2. d4 {[%clk 0:02:59]}  d5 {[%clk 0:02:45]} 3. Nc3 {[%clk 0:02:55]}  Bb4 {[%clk 0:02:45]} 4. e5 {[%clk 0:02:53]}  c5 {[%clk 0:02:45]} 5. a3 {[%clk 0:02:54]}  Bxc3+ {[%clk 0:02:45]} 6. bxc3 {[%clk 0:02:55]}  Ne7 {[%clk 0:02:46]} 7. h4 {[%clk 0:02:52]}  Qc7 {[%clk 0:02:46]} 8. Nf3 {[%clk 0:02:50]}  b6 {[%clk 0:02:45]} 9. Bb5+ {[%clk 0:02:49]}  Bd7 {[%clk 0:02:45]} 10. Bd3 {[%clk 0:02:49]}  Ba4 {[%clk 0:02:44]} 11. h5 {[%clk 0:02:33]}  h6 {[%clk 0:02:44]} 12. Rh4 {[%clk 0:02:30]}  Nd7 {[%clk 0:02:44]} 13. Rg4 {[%clk 0:02:22]}  c4 {[%clk 0:02:44]} 14. Be2 {[%clk 0:02:18]}  Rg8 {[%clk 0:02:44]} 15. Nh4 {[%clk 0:02:03]}  O-O-O {[%clk 0:02:44]} 16. Rf4 {[%clk 0:02:00]}  f6 {[%clk 0:02:42]} 17. exf6 {[%clk 0:01:54]}  gxf6 {[%clk 0:02:42]} 18. g3 {[%clk 0:01:47]}  e5 {[%clk 0:02:40]} 19. Rf3 {[%clk 0:01:46]}  e4 {[%clk 0:02:31]} 20. Rf4 {[%clk 0:01:40]}  Rg5 {[%clk 0:02:31]} 21. Be3 {[%clk 0:01:36]}  Kb7 {[%clk 0:02:30]} 22. Bg4 {[%clk 0:01:31]}  Rdg8 {[%clk 0:02:07]} 23. Bh3 {[%clk 0:01:24]}  Rxg3 {[%clk 0:02:01]} 24. fxg3 {[%clk 0:01:15]}  Rxg3 {[%clk 0:02:02]} 25. Kf2 {[%clk 0:01:06]}  Rxh3 {[%clk 0:02:00]} 26. Qg1 {[%clk 0:01:01]}  Bxc2 {[%clk 0:01:52]} 27. Qg2 {[%clk 0:00:56]}  Rxh4 {[%clk 0:01:25]} 28. Rxh4 {[%clk 0:00:55]}  Qc6 {[%clk 0:01:22]} 29. Rf4 {[%clk 0:00:50]}  Ka6 {[%clk 0:01:15]} 30. Qg7 {[%clk 0:00:48]}  Qe6 {[%clk 0:01:14]} 31. Rg1 {[%clk 0:00:44]}  Ba4 {[%clk 0:01:06]} 32. Rg3 {[%clk 0:00:34]}  Qd6 {[%clk 0:00:58]} 33. Qxh6 {[%clk 0:00:33]}  Qxa3 {[%clk 0:00:58]} 34. Rg7 {[%clk 0:00:28]}  Qb2+ {[%clk 0:00:57]} 35. Kg1 {[%clk 0:00:26]}  Qxc3 {[%clk 0:00:57]} 36. Rf1 {[%clk 0:00:26]}  Nc6 {[%clk 0:00:52]} 37. Rxd7 {[%clk 0:00:25]}  Nxd4 {[%clk 0:00:52]} 38. Rxd5 {[%clk 0:00:20]}  Nf3+ {[%clk 0:00:47]} 39. Kf2 {[%clk 0:00:14]}  Nh2 {[%clk 0:00:38]} 40. Rg1 {[%clk 0:00:14]}  Qb2+ {[%clk 0:00:29]} 41. Rd2 {[%clk 0:00:13]}  Qb5 {[%clk 0:00:29]} 42. Qf4 {[%clk 0:00:13]}  Nf3 {[%clk 0:00:29]} 43. Rh1 {[%clk 0:00:13]}  Nxd2 {[%clk 0:00:27]} 44. Bxd2 {[%clk 0:00:14]}  c3 {[%clk 0:00:27]} 45. Be3 {[%clk 0:00:15]}  c2 {[%clk 0:00:15]} 46. h6 {[%clk 0:00:15]}  Qb1 {[%clk 0:00:15]} 47. Bc1 {[%clk 0:00:15]}  e3+ {[%clk 0:00:16]} 48. Qxe3 {[%clk 0:00:15]}  Bc6 {[%clk 0:00:16]} 49. Rh4 {[%clk 0:00:14]}  Qb5 {[%clk 0:00:16]} 50. Qe2 {[%clk 0:00:14]} 1-0


[Site "https://www.chess.com"]

[Event "Early Titled Tuesday Blitz | February 8 2022"]
[White "Moiseenko, Alexander"]
[Black "Atakhan, Abtin"]
[WhiteFideId "14102560"]
[BlackFideId "22502203"]
[WhiteElo "2813"]
[BlackElo "2596"]
[Result "1-0"]
[Round "06"]
[TimeControl "180+1"]
[Date "2022.02.08"]
[WhiteClock "0:00:05"]
[BlackClock "0:00:09"]

1. d4 {[%clk 0:00:38]}  d5 {[%clk 0:02:58]} 2. c4 {[%clk 0:00:38]}  c6 {[%clk 0:02:59]} 3. Nf3 {[%clk 0:00:38]}  Nf6 {[%clk 0:02:59]} 4. Nc3 {[%clk 0:00:38]}  e6 {[%clk 0:03:00]} 5. e3 {[%clk 0:00:37]}  Nbd7 {[%clk 0:02:58]} 6. Bd3 {[%clk 0:00:38]}  dxc4 {[%clk 0:02:57]} 7. Bxc4 {[%clk 0:00:38]}  b5 {[%clk 0:02:56]} 8. Bd3 {[%clk 0:00:39]}  Bb7 {[%clk 0:02:32]} 9. e4 {[%clk 0:00:39]}  b4 {[%clk 0:02:25]} 10. Na4 {[%clk 0:00:39]}  c5 {[%clk 0:02:23]} 11. e5 {[%clk 0:00:40]}  Nd5 {[%clk 0:02:21]} 12. dxc5 {[%clk 0:00:40]}  Nxc5 {[%clk 0:02:16]} 13. Bb5+ {[%clk 0:00:40]}  Nd7 {[%clk 0:02:14]} 14. Bg5 {[%clk 0:00:40]}  Qa5 {[%clk 0:02:10]} 15. Bxd7+ {[%clk 0:00:40]}  Kxd7 {[%clk 0:02:07]} 16. O-O {[%clk 0:00:41]}  Be7 {[%clk 0:02:04]} 17. Bd2 {[%clk 0:00:41]}  Rhc8 {[%clk 0:01:47]} 18. a3 {[%clk 0:00:40]}  Ke8 {[%clk 0:01:39]} 19. axb4 {[%clk 0:00:40]}  Bxb4 {[%clk 0:01:38]} 20. Nc3 {[%clk 0:00:41]}  Qc5 {[%clk 0:01:13]} 21. Ne4 {[%clk 0:00:36]}  Qe7 {[%clk 0:01:08]} 22. Bxb4 {[%clk 0:00:36]}  Qxb4 {[%clk 0:01:04]} 23. Nd6+ {[%clk 0:00:35]}  Kf8 {[%clk 0:01:05]} 24. Nxc8 {[%clk 0:00:33]}  Rxc8 {[%clk 0:01:06]} 25. Qd4 {[%clk 0:00:32]}  Qb3 {[%clk 0:00:59]} 26. Rxa7 {[%clk 0:00:28]}  h6 {[%clk 0:00:53]} 27. h4 {[%clk 0:00:28]}  Kg8 {[%clk 0:00:53]} 28. Rfa1 {[%clk 0:00:23]}  Rc2 {[%clk 0:00:50]} 29. Qd1 {[%clk 0:00:19]}  Rxb2 {[%clk 0:00:34]} 30. Qxb3 {[%clk 0:00:17]}  Rxb3 {[%clk 0:00:35]} 31. Nd2 {[%clk 0:00:12]}  Rb4 {[%clk 0:00:34]} 32. Rb1 {[%clk 0:00:12]}  Rxb1+ {[%clk 0:00:27]} 33. Nxb1 {[%clk 0:00:13]}  Bc6 {[%clk 0:00:28]} 34. Nd2 {[%clk 0:00:13]}  Bb5 {[%clk 0:00:27]} 35. Nf3 {[%clk 0:00:12]}  Bd3 {[%clk 0:00:25]} 36. Nd4 {[%clk 0:00:12]}  Bg6 {[%clk 0:00:25]} 37. g3 {[%clk 0:00:11]}  h5 {[%clk 0:00:17]} 38. Nc6 {[%clk 0:00:10]}  Kh7 {[%clk 0:00:17]} 39. Ne7 {[%clk 0:00:09]}  Be4 {[%clk 0:00:15]} 40. Nxd5 {[%clk 0:00:09]}  exd5 {[%clk 0:00:13]} 41. Rxf7 {[%clk 0:00:09]}  Kg6 {[%clk 0:00:13]} 42. Rf8 {[%clk 0:00:07]}  Bf5 {[%clk 0:00:12]} 43. f4 {[%clk 0:00:06]}  d4 {[%clk 0:00:12]} 44. Kf2 {[%clk 0:00:06]}  Bc2 {[%clk 0:00:09]} 45. e6 {[%clk 0:00:05]} 1-0


[Site "https://www.chess.com"]

[Event "Early Titled Tuesday Blitz | February 8 2022"]
[White "Muradov, Soltan"]
[Black "Jain, Naveen"]
[WhiteFideId "14002108"]
[BlackFideId "5003970"]
[WhiteElo "1854"]
[BlackElo "2036"]
[Result "1-0"]
[Round "06"]
[TimeControl "180+1"]
[Date "2022.02.08"]
[WhiteClock "0:00:10"]
[BlackClock "0:00:04"]

1. c4 {[%clk 0:02:59]}  g6 {[%clk 0:02:59]} 2. Nf3 {[%clk 0:03:00]}  Bg7 {[%clk 0:03:00]} 3. e3 {[%clk 0:03:00]}  Nf6 {[%clk 0:03:00]} 4. b3 {[%clk 0:03:01]}  O-O {[%clk 0:03:00]} 5. Bb2 {[%clk 0:03:01]}  d6 {[%clk 0:03:00]} 6. d4 {[%clk 0:03:01]}  a6 {[%clk 0:02:57]} 7. Nc3 {[%clk 0:02:58]}  Nbd7 {[%clk 0:02:58]} 8. Be2 {[%clk 0:02:58]}  e5 {[%clk 0:02:56]} 9. dxe5 {[%clk 0:02:59]}  dxe5 {[%clk 0:02:56]} 10. O-O {[%clk 0:02:59]}  Qe7 {[%clk 0:02:50]} 11. Qd2 {[%clk 0:02:49]}  e4 {[%clk 0:02:42]} 12. Nd4 {[%clk 0:02:47]}  c5 {[%clk 0:02:42]} 13. Nc2 {[%clk 0:02:45]}  b6 {[%clk 0:02:37]} 14. Nd5 {[%clk 0:02:17]}  Nxd5 {[%clk 0:02:28]} 15. Bxg7 {[%clk 0:02:17]}  Kxg7 {[%clk 0:02:21]} 16. Qxd5 {[%clk 0:02:17]}  Rb8 {[%clk 0:02:20]} 17. Rad1 {[%clk 0:02:11]}  Nf6 {[%clk 0:02:11]} 18. Qd6 {[%clk 0:02:11]}  Qxd6 {[%clk 0:02:09]} 19. Rxd6 {[%clk 0:02:12]}  Be6 {[%clk 0:02:10]} 20. Rfd1 {[%clk 0:02:11]}  Rfc8 {[%clk 0:02:02]} 21. f3 {[%clk 0:01:55]}  exf3 {[%clk 0:01:57]} 22. gxf3 {[%clk 0:01:55]}  Kf8 {[%clk 0:01:57]} 23. e4 {[%clk 0:01:52]}  Ke7 {[%clk 0:01:57]} 24. Ne3 {[%clk 0:01:53]}  Rd8 {[%clk 0:01:48]} 25. Rxd8 {[%clk 0:01:45]}  Rxd8 {[%clk 0:01:47]} 26. Nd5+ {[%clk 0:01:45]}  Bxd5 {[%clk 0:01:40]} 27. cxd5 {[%clk 0:01:44]}  b5 {[%clk 0:01:40]} 28. Kf2 {[%clk 0:01:41]}  Kd6 {[%clk 0:01:38]} 29. Ke3 {[%clk 0:01:40]}  g5 {[%clk 0:01:38]} 30. h4 {[%clk 0:01:35]}  h6 {[%clk 0:01:31]} 31. Rh1 {[%clk 0:01:32]}  Ke5 {[%clk 0:01:23]} 32. hxg5 {[%clk 0:01:04]}  hxg5 {[%clk 0:01:24]} 33. Rg1 {[%clk 0:01:04]}  Rg8 {[%clk 0:01:22]} 34. Rc1 {[%clk 0:01:04]}  Nd7 {[%clk 0:01:18]} 35. a4 {[%clk 0:01:02]}  bxa4 {[%clk 0:01:16]} 36. bxa4 {[%clk 0:01:02]}  Rb8 {[%clk 0:01:16]} 37. Bxa6 {[%clk 0:00:56]}  Rb3+ {[%clk 0:01:15]} 38. Kf2 {[%clk 0:00:54]}  Kf4 {[%clk 0:01:13]} 39. Be2 {[%clk 0:00:54]}  Ra3 {[%clk 0:01:10]} 40. Rg1 {[%clk 0:00:37]}  Ne5 {[%clk 0:01:10]} 41. Rc1 {[%clk 0:00:35]}  Ra2 {[%clk 0:01:08]} 42. Rc3 {[%clk 0:00:14]}  c4 {[%clk 0:01:06]} 43. a5 {[%clk 0:00:13]}  Nd3+ {[%clk 0:01:04]} 44. Kf1 {[%clk 0:00:13]}  Ke3 {[%clk 0:00:46]} 45. d6 {[%clk 0:00:13]}  Ra1+ {[%clk 0:00:32]} 46. Kg2 {[%clk 0:00:13]}  Rxa5 {[%clk 0:00:33]} 47. d7 {[%clk 0:00:10]}  Ra8 {[%clk 0:00:33]} 48. Bxd3 {[%clk 0:00:10]}  Ra2+ {[%clk 0:00:04]} 49. Kg3 {[%clk 0:00:10]} 1-0


[Site "https://www.chess.com"]